[Event "Titled Tuesday Blitz July 6 2021"]
[White "Galego, Luis"]
[Black "Timmermans, Mark"]
[WhiteFideId "1900072"]
[BlackFideId "1026399"]
[WhiteElo "2524"]
[BlackElo "2460"]
[Result "1-0"]
[Round "03"]
[TimeControl "180+1"]
[Date "2021.07.06"]
[WhiteClock "0:00:18"]
[BlackClock "0:01:07"]

1. e4 {[%clk 0:03:00]}  e5 {[%clk 0:03:00]} 2. Nf3 {[%clk 0:03:01]}  Nc6 {[%clk 0:03:00]} 3. Bb5 {[%clk 0:03:01]}  f5 {[%clk 0:02:59]} 4. d3 {[%clk 0:03:01]}  fxe4 {[%clk 0:03:00]} 5. dxe4 {[%clk 0:03:01]}  Nf6 {[%clk 0:03:00]} 6. Qd3 {[%clk 0:03:01]}  d6 {[%clk 0:03:00]} 7. Nc3 {[%clk 0:03:00]}  Be7 {[%clk 0:02:57]} 8. Qc4 {[%clk 0:02:48]}  Bd7 {[%clk 0:02:52]} 9. Ng5 {[%clk 0:02:45]}  Rf8 {[%clk 0:02:51]} 10. Ne6 {[%clk 0:02:41]}  Bxe6 {[%clk 0:02:52]} 11. Qxe6 {[%clk 0:02:41]}  Qd7 {[%clk 0:02:52]} 12. Qxd7+ {[%clk 0:02:38]}  Kxd7 {[%clk 0:02:53]} 13. Be3 {[%clk 0:02:33]}  a6 {[%clk 0:02:53]} 14. Be2 {[%clk 0:02:31]}  Nd4 {[%clk 0:02:51]} 15. Bd1 {[%clk 0:02:26]}  b5 {[%clk 0:02:50]} 16. a3 {[%clk 0:02:22]}  c5 {[%clk 0:02:48]} 17. f3 {[%clk 0:02:21]}  Bd8 {[%clk 0:02:44]} 18. Ne2 {[%clk 0:02:16]}  Ba5+ {[%clk 0:02:36]} 19. c3 {[%clk 0:02:13]}  Nh5 {[%clk 0:02:23]} 20. b4 {[%clk 0:02:04]}  Nxe2 {[%clk 0:02:23]} 21. Bxe2 {[%clk 0:02:03]}  Bb6 {[%clk 0:02:19]} 22. a4 {[%clk 0:01:54]}  Kc6 {[%clk 0:02:17]} 23. g3 {[%clk 0:01:32]}  c4 {[%clk 0:01:46]} 24. Bxb6 {[%clk 0:01:24]}  Kxb6 {[%clk 0:01:47]} 25. Kf2 {[%clk 0:01:20]}  Nf6 {[%clk 0:01:46]} 26. Ke3 {[%clk 0:01:03]}  d5 {[%clk 0:01:46]} 27. Rhd1 {[%clk 0:01:03]}  Rad8 {[%clk 0:01:44]} 28. axb5 {[%clk 0:01:02]}  axb5 {[%clk 0:01:45]} 29. Rd2 {[%clk 0:00:57]}  Rf7 {[%clk 0:01:37]} 30. exd5 {[%clk 0:00:36]}  Nxd5+ {[%clk 0:01:37]} 31. Kf2 {[%clk 0:00:36]}  Rfd7 {[%clk 0:01:37]} 32. Rc2 {[%clk 0:00:27]}  Nf6 {[%clk 0:01:30]} 33. Rca2 {[%clk 0:00:26]}  Rb7 {[%clk 0:01:22]} 34. Ra6+ {[%clk 0:00:26]}  Kc7 {[%clk 0:01:22]} 35. Re6 {[%clk 0:00:26]}  Re8 {[%clk 0:01:19]} 36. Raa6 {[%clk 0:00:26]}  Kd7 {[%clk 0:01:18]} 37. Rad6+ {[%clk 0:00:25]}  Kc7 {[%clk 0:01:15]} 38. Rc6+ {[%clk 0:00:25]}  Kd8 {[%clk 0:01:14]} 39. Rcd6+ {[%clk 0:00:23]}  Nd7 {[%clk 0:01:14]} 40. f4 {[%clk 0:00:21]}  e4 {[%clk 0:01:12]} 41. Bg4 {[%clk 0:00:18]}  Rxe6 {[%clk 0:01:12]} 42. Bxe6 {[%clk 0:00:16]}  Ke7 {[%clk 0:01:12]} 43. Rxd7+ {[%clk 0:00:17]}  Rxd7 {[%clk 0:01:12]} 44. Bxd7 {[%clk 0:00:17]}  Kxd7 {[%clk 0:01:13]} 45. Ke3 {[%clk 0:00:17]}  Ke6 {[%clk 0:01:06]} 46. Kxe4 {[%clk 0:00:18]}  h5 {[%clk 0:01:06]} 47. h3 {[%clk 0:00:18]}  g6 {[%clk 0:01:06]} 48. g4 {[%clk 0:00:18]}  hxg4 {[%clk 0:01:06]} 49. hxg4 {[%clk 0:00:18]}  Kd6 {[%clk 0:01:07]} 50. f5 {[%clk 0:00:18]}  g5 {[%clk 0:01:07]} 51. Kd4 {[%clk 0:00:18]}  Kc6 {[%clk 0:01:07]} 52. Ke5 {[%clk 0:00:17]}  Kd7 {[%clk 0:01:07]} 53. f6 {[%clk 0:00:17]}  Ke8 {[%clk 0:01:06]} 54. Kf5 {[%clk 0:00:18]}  Kf7 {[%clk 0:01:07]} 55. Kxg5 {[%clk 0:00:18]} 1-0


[Site "https://www.chess.com"]

[Event "Titled Tuesday Blitz July 6 2021"]
[White "Garcia, Gabriel Gonzaga"]
[Black "Stremavicius, Titas"]
[WhiteFideId "2138956"]
[BlackFideId "12804444"]
[WhiteElo "2240"]
[BlackElo "2437"]
[Result "0-1"]
[Round "03"]
[TimeControl "180+1"]
[Date "2021.07.06"]
[WhiteClock "0:00:02"]
[BlackClock "0:00:07"]

1. e4 {[%clk 0:02:58]}  d6 {[%clk 0:02:57]} 2. d4 {[%clk 0:02:58]}  Nf6 {[%clk 0:02:56]} 3. Nc3 {[%clk 0:02:58]}  g6 {[%clk 0:02:57]} 4. Be2 {[%clk 0:02:57]}  Bg7 {[%clk 0:02:56]} 5. g4 {[%clk 0:02:55]}  c6 {[%clk 0:02:54]} 6. g5 {[%clk 0:02:55]}  Nfd7 {[%clk 0:02:54]} 7. h4 {[%clk 0:02:55]}  e5 {[%clk 0:02:54]} 8. d5 {[%clk 0:02:54]}  f5 {[%clk 0:02:49]} 9. exf5 {[%clk 0:02:51]}  gxf5 {[%clk 0:02:48]} 10. Bh5+ {[%clk 0:02:51]}  Ke7 {[%clk 0:02:47]} 11. Nge2 {[%clk 0:02:22]}  Nb6 {[%clk 0:02:46]} 12. Be3 {[%clk 0:02:12]}  f4 {[%clk 0:02:31]} 13. Bxb6 {[%clk 0:02:09]}  axb6 {[%clk 0:02:32]} 14. Qd3 {[%clk 0:02:01]}  Na6 {[%clk 0:02:24]} 15. Rd1 {[%clk 0:01:52]}  Nc5 {[%clk 0:02:20]} 16. Qd2 {[%clk 0:01:50]}  Bf5 {[%clk 0:02:18]} 17. b4 {[%clk 0:01:42]}  Ne4 {[%clk 0:02:15]} 18. Nxe4 {[%clk 0:01:35]}  Bxe4 {[%clk 0:02:15]} 19. O-O {[%clk 0:01:26]}  Bxd5 {[%clk 0:02:14]} 20. Rfe1 {[%clk 0:01:26]}  Be6 {[%clk 0:01:50]} 21. Nxf4 {[%clk 0:01:25]}  exf4 {[%clk 0:01:48]} 22. Bg4 {[%clk 0:01:25]}  Be5 {[%clk 0:01:48]} 23. Bxe6 {[%clk 0:01:12]}  Kxe6 {[%clk 0:01:49]} 24. Qxf4 {[%clk 0:01:13]}  Rf8 {[%clk 0:01:00]} 25. Rxe5+ {[%clk 0:01:09]}  dxe5 {[%clk 0:00:59]} 26. Qc4+ {[%clk 0:01:10]}  Ke7 {[%clk 0:00:52]} 27. Rxd8 {[%clk 0:01:07]}  Raxd8 {[%clk 0:00:53]} 28. Qe4 {[%clk 0:01:08]}  Ke6 {[%clk 0:00:44]} 29. Qxh7 {[%clk 0:01:02]}  Rd1+ {[%clk 0:00:43]} 30. Kg2 {[%clk 0:01:02]}  Rd2 {[%clk 0:00:44]} 31. Qxb7 {[%clk 0:00:55]}  Rdxf2+ {[%clk 0:00:21]} 32. Kg3 {[%clk 0:00:55]}  R8f3+ {[%clk 0:00:19]} 33. Kg4 {[%clk 0:00:55]}  e4 {[%clk 0:00:19]} 34. Qxc6+ {[%clk 0:00:54]}  Ke5 {[%clk 0:00:20]} 35. Qe8+ {[%clk 0:00:46]}  Kd4 {[%clk 0:00:20]} 36. Qd7+ {[%clk 0:00:43]}  Ke3 {[%clk 0:00:19]} 37. g6 {[%clk 0:00:41]}  Rg2+ {[%clk 0:00:18]} 38. Kh5 {[%clk 0:00:41]}  Rfg3 {[%clk 0:00:18]} 39. Qe6 {[%clk 0:00:25]}  b5 {[%clk 0:00:18]} 40. Kh6 {[%clk 0:00:21]}  Kd4 {[%clk 0:00:18]} 41. h5 {[%clk 0:00:19]}  e3 {[%clk 0:00:18]} 42. Qd6+ {[%clk 0:00:19]}  Kc3 {[%clk 0:00:18]} 43. Qc5+ {[%clk 0:00:18]}  Kd2 {[%clk 0:00:17]} 44. Qxb5 {[%clk 0:00:18]}  e2 {[%clk 0:00:17]} 45. Qd5+ {[%clk 0:00:19]}  Kxc2 {[%clk 0:00:17]} 46. Qe4+ {[%clk 0:00:17]}  Kd2 {[%clk 0:00:17]} 47. Qd4+ {[%clk 0:00:17]}  Rd3 {[%clk 0:00:16]} 48. Qf4+ {[%clk 0:00:15]}  Kd1 {[%clk 0:00:16]} 49. Qe4 {[%clk 0:00:08]}  Rgg3 {[%clk 0:00:13]} 50. g7 {[%clk 0:00:03]}  e1=Q {[%clk 0:00:05]} 51. Qxd3+ {[%clk 0:00:02]}  Rxd3 {[%clk 0:00:06]} 52. g8=Q {[%clk 0:00:03]}  Rd6+ {[%clk 0:00:06]} 53. Kh7 {[%clk 0:00:03]}  Rd7+ {[%clk 0:00:06]} 54. Kh6 {[%clk 0:00:02]}  Qe3+ {[%clk 0:00:06]} 55. Qg5 {[%clk 0:00:02]}  Rd6+ {[%clk 0:00:07]} 0-1


[Site "https://www.chess.com"]

[Event "Titled Tuesday Blitz July 6 2021"]
[White "Guliev, Logman"]
[Black "Khanin, Semen"]
[WhiteFideId "13400061"]
[BlackFideId "4111990"]
[WhiteElo "2128"]
[BlackElo "2521"]
[Result "0-1"]
[Round "03"]
[TimeControl "180+1"]
[Date "2021.07.06"]
[WhiteClock "0:01:03"]
[BlackClock "0:01:53"]

1. e4 {[%clk 0:03:00]}  c6 {[%clk 0:02:59]} 2. d4 {[%clk 0:03:00]}  d5 {[%clk 0:03:00]} 3. exd5 {[%clk 0:03:00]}  cxd5 {[%clk 0:03:00]} 4. c4 {[%clk 0:03:01]}  dxc4 {[%clk 0:02:59]} 5. Bxc4 {[%clk 0:02:59]}  Nf6 {[%clk 0:02:59]} 6. Nf3 {[%clk 0:02:56]}  e6 {[%clk 0:03:00]} 7. O-O {[%clk 0:02:56]}  Be7 {[%clk 0:03:00]} 8. Nc3 {[%clk 0:02:55]}  O-O {[%clk 0:03:01]} 9. a3 {[%clk 0:02:55]}  Nbd7 {[%clk 0:02:55]} 10. Bg5 {[%clk 0:02:55]}  h6 {[%clk 0:02:55]} 11. Bh4 {[%clk 0:02:53]}  Nb6 {[%clk 0:02:55]} 12. Ba2 {[%clk 0:02:52]}  Bd7 {[%clk 0:02:52]} 13. Rc1 {[%clk 0:02:50]}  Rc8 {[%clk 0:02:51]} 14. Ne5 {[%clk 0:02:47]}  Bc6 {[%clk 0:02:46]} 15. Nxc6 {[%clk 0:02:42]}  Rxc6 {[%clk 0:02:45]} 16. Qd3 {[%clk 0:02:42]}  Nbd5 {[%clk 0:02:34]} 17. Nxd5 {[%clk 0:02:35]}  Nxd5 {[%clk 0:02:32]} 18. Bb1 {[%clk 0:02:31]}  g6 {[%clk 0:02:31]} 19. Rxc6 {[%clk 0:02:24]}  bxc6 {[%clk 0:02:31]} 20. Bg3 {[%clk 0:02:22]}  Bf6 {[%clk 0:02:28]} 21. b4 {[%clk 0:02:18]}  Qb6 {[%clk 0:02:28]} 22. Rd1 {[%clk 0:02:13]}  Rd8 {[%clk 0:02:29]} 23. Be5 {[%clk 0:01:59]}  Kg7 {[%clk 0:02:19]} 24. Qg3 {[%clk 0:01:47]}  Rd7 {[%clk 0:02:13]} 25. h3 {[%clk 0:01:40]}  a5 {[%clk 0:02:05]} 26. bxa5 {[%clk 0:01:34]}  Qxa5 {[%clk 0:02:05]} 27. Be4 {[%clk 0:01:32]}  Bxe5 {[%clk 0:01:55]} 28. dxe5 {[%clk 0:01:26]}  Nc3 {[%clk 0:01:53]} 29. Re1 {[%clk 0:01:07]}  Rd1 {[%clk 0:01:53]} 30. Qe3 {[%clk 0:01:06]}  Ne2+ {[%clk 0:01:53]} 31. Qxe2 {[%clk 0:01:03]}  Rxe1+ {[%clk 0:01:53]} 0-1


[Site "https://www.chess.com"]

[Event "Titled Tuesday Blitz July 6 2021"]
[White "Gunina, Valentina"]
[Black "Slovak_fighter2000"]
[WhiteFideId "4167570"]
[WhiteElo "2399"]
[BlackElo "2494"]
[Result "1-0"]
[Round "03"]
[TimeControl "180+1"]
[Date "2021.07.06"]
[WhiteClock "0:00:26"]
[BlackClock "0:00:05"]

1. d4 {[%clk 0:03:00]}  Nf6 {[%clk 0:02:59]} 2. c4 {[%clk 0:02:59]}  e6 {[%clk 0:03:00]} 3. Nf3 {[%clk 0:02:59]}  b6 {[%clk 0:02:59]} 4. g3 {[%clk 0:02:59]}  Bb7 {[%clk 0:03:00]} 5. Bg2 {[%clk 0:02:59]}  Be7 {[%clk 0:03:00]} 6. O-O {[%clk 0:02:59]}  O-O {[%clk 0:02:59]} 7. Qc2 {[%clk 0:02:58]}  c5 {[%clk 0:02:56]} 8. dxc5 {[%clk 0:02:57]}  bxc5 {[%clk 0:02:55]} 9. Nc3 {[%clk 0:02:58]}  Nc6 {[%clk 0:02:48]} 10. Rd1 {[%clk 0:02:57]}  d6 {[%clk 0:02:46]} 11. b3 {[%clk 0:02:51]}  Qb8 {[%clk 0:02:41]} 12. Bb2 {[%clk 0:02:51]}  Rd8 {[%clk 0:02:39]} 13. Ng5 {[%clk 0:02:51]}  Nd4 {[%clk 0:02:35]} 14. Qd2 {[%clk 0:02:43]}  Bxg2 {[%clk 0:02:34]} 15. Kxg2 {[%clk 0:02:43]}  Qb7+ {[%clk 0:02:34]} 16. f3 {[%clk 0:02:39]}  h6 {[%clk 0:02:26]} 17. Nge4 {[%clk 0:02:38]}  Nxe4 {[%clk 0:02:25]} 18. Nxe4 {[%clk 0:02:37]}  f5 {[%clk 0:02:21]} 19. Nf2 {[%clk 0:02:33]}  Bf6 {[%clk 0:02:18]} 20. Rab1 {[%clk 0:02:27]}  a5 {[%clk 0:02:13]} 21. Re1 {[%clk 0:02:19]}  a4 {[%clk 0:02:08]} 22. Bxd4 {[%clk 0:02:17]}  Bxd4 {[%clk 0:02:04]} 23. e3 {[%clk 0:02:17]}  Bf6 {[%clk 0:02:04]} 24. e4 {[%clk 0:02:17]}  Bd4 {[%clk 0:01:49]} 25. exf5 {[%clk 0:02:16]}  exf5 {[%clk 0:01:50]} 26. Nd3 {[%clk 0:02:05]}  axb3 {[%clk 0:01:45]} 27. axb3 {[%clk 0:02:05]}  Qd7 {[%clk 0:01:44]} 28. Nf4 {[%clk 0:02:03]}  Re8 {[%clk 0:01:41]} 29. Nd5 {[%clk 0:02:01]}  Rxe1 {[%clk 0:01:40]} 30. Rxe1 {[%clk 0:02:00]}  Re8 {[%clk 0:01:41]} 31. Re2 {[%clk 0:01:56]}  Re6 {[%clk 0:01:36]} 32. Nf4 {[%clk 0:01:52]}  Re5 {[%clk 0:01:35]} 33. Rxe5 {[%clk 0:01:46]}  dxe5 {[%clk 0:01:31]} 34. Nd5 {[%clk 0:01:46]}  Qb7 {[%clk 0:01:25]} 35. Qc2 {[%clk 0:01:45]}  g6 {[%clk 0:01:21]} 36. Qa2 {[%clk 0:01:46]}  Kg7 {[%clk 0:01:15]} 37. Qa4 {[%clk 0:01:45]}  e4 {[%clk 0:01:10]} 38. fxe4 {[%clk 0:01:45]}  fxe4 {[%clk 0:01:11]} 39. Qe8 {[%clk 0:01:38]}  Qxb3 {[%clk 0:01:11]} 40. Qe7+ {[%clk 0:01:37]}  Kg8 {[%clk 0:01:10]} 41. Qxe4 {[%clk 0:01:32]}  Kg7 {[%clk 0:01:02]} 42. Nf4 {[%clk 0:01:30]}  Qxc4 {[%clk 0:00:54]} 43. Qxg6+ {[%clk 0:01:30]}  Kf8 {[%clk 0:00:52]} 44. Qxh6+ {[%clk 0:01:30]}  Ke7 {[%clk 0:00:51]} 45. Qh7+ {[%clk 0:01:31]}  Ke8 {[%clk 0:00:49]} 46. Qe4+ {[%clk 0:01:30]}  Kd7 {[%clk 0:00:48]} 47. h4 {[%clk 0:01:30]}  Qa2+ {[%clk 0:00:42]} 48. Kh3 {[%clk 0:01:30]}  Qa1 {[%clk 0:00:34]} 49. Qe6+ {[%clk 0:01:27]}  Kd8 {[%clk 0:00:32]} 50. h5 {[%clk 0:01:13]}  Qh1+ {[%clk 0:00:30]} 51. Kg4 {[%clk 0:01:13]}  Qd1+ {[%clk 0:00:30]} 52. Kg5 {[%clk 0:01:11]}  Qg1 {[%clk 0:00:24]} 53. Qd6+ {[%clk 0:00:59]}  Kc8 {[%clk 0:00:23]} 54. Nd5 {[%clk 0:00:55]}  Qc1+ {[%clk 0:00:14]} 55. Qf4 {[%clk 0:00:30]}  Qxf4+ {[%clk 0:00:13]} 56. Kxf4 {[%clk 0:00:30]}  Kd7 {[%clk 0:00:14]} 57. g4 {[%clk 0:00:27]}  c4 {[%clk 0:00:13]} 58. Ke4 {[%clk 0:00:26]}  Bh8 {[%clk 0:00:10]} 59. Nb6+ {[%clk 0:00:26]}  Ke6 {[%clk 0:00:09]} 60. Nxc4 {[%clk 0:00:26]}  Kf7 {[%clk 0:00:07]} 61. Kf5 {[%clk 0:00:26]}  Bc3 {[%clk 0:00:06]} 62. Ne5+ {[%clk 0:00:25]}  Kg7 {[%clk 0:00:06]} 63. g5 {[%clk 0:00:26]}  Bb2 {[%clk 0:00:05]} 64. h6+ {[%clk 0:00:26]}  Kh7 {[%clk 0:00:05]} 65. Ng4 {[%clk 0:00:26]}  Bc3 {[%clk 0:00:05]} 66. Nf6+ {[%clk 0:00:26]}  Kh8 {[%clk 0:00:05]} 67. g6 {[%clk 0:00:26]} 1-0


[Site "https://www.chess.com"]

[Event "Titled Tuesday Blitz July 6 2021"]
[White "Jobava, Baadur"]
[Black "Shevelev, Dmitry"]
[WhiteFideId "13601520"]
[BlackFideId "24233463"]
[WhiteElo "2748"]
[BlackElo "2462"]
[Result "1-0"]
[Round "03"]
[TimeControl "180+1"]
[Date "2021.07.06"]
[WhiteClock "0:02:27"]
[BlackClock "0:00:46"]

1. d4 {[%clk 0:03:00]}  g6 {[%clk 0:02:50]} 2. Nc3 {[%clk 0:03:01]}  Bg7 {[%clk 0:02:50]} 3. e4 {[%clk 0:03:01]}  c6 {[%clk 0:02:51]} 4. d5 {[%clk 0:03:01]}  Nf6 {[%clk 0:02:44]} 5. Nf3 {[%clk 0:03:00]}  O-O {[%clk 0:02:44]} 6. Be2 {[%clk 0:02:59]}  b5 {[%clk 0:02:42]} 7. a3 {[%clk 0:02:58]}  a5 {[%clk 0:02:42]} 8. O-O {[%clk 0:02:58]}  Ba6 {[%clk 0:02:42]} 9. e5 {[%clk 0:02:56]}  Nxd5 {[%clk 0:02:09]} 10. Nxd5 {[%clk 0:02:57]}  cxd5 {[%clk 0:02:09]} 11. Qxd5 {[%clk 0:02:58]}  Nc6 {[%clk 0:02:08]} 12. Bxb5 {[%clk 0:02:57]}  e6 {[%clk 0:02:04]} 13. Qd3 {[%clk 0:02:57]}  Bxb5 {[%clk 0:01:52]} 14. Qxb5 {[%clk 0:02:58]}  Rb8 {[%clk 0:01:52]} 15. Qe2 {[%clk 0:02:57]}  a4 {[%clk 0:01:49]} 16. h3 {[%clk 0:02:55]}  Qa5 {[%clk 0:01:49]} 17. Re1 {[%clk 0:02:54]}  Rb5 {[%clk 0:01:41]} 18. Bd2 {[%clk 0:02:53]}  Qb6 {[%clk 0:01:38]} 19. Bc3 {[%clk 0:02:54]}  Rxb2 {[%clk 0:01:38]} 20. Bxb2 {[%clk 0:02:53]}  Qxb2 {[%clk 0:01:39]} 21. Rad1 {[%clk 0:02:53]}  Qxa3 {[%clk 0:01:35]} 22. Rxd7 {[%clk 0:02:53]}  Qc3 {[%clk 0:01:24]} 23. Rc7 {[%clk 0:02:51]}  a3 {[%clk 0:01:21]} 24. Qa6 {[%clk 0:02:44]}  Nxe5 {[%clk 0:00:46]} 25. Rxc3 {[%clk 0:02:27]}  Nxf3+ {[%clk 0:00:46]} 26. Rxf3 {[%clk 0:02:27]} 1-0


[Site "https://www.chess.com"]

[Event "Titled Tuesday Blitz July 6 2021"]
[White "Kalajzic, Ivan"]
[Black "Leitao, Rafael"]
[WhiteFideId "14506378"]
[BlackFideId "2101246"]
[WhiteElo "2163"]
[BlackElo "2609"]
[Result "1-0"]
[Round "03"]
[TimeControl "180+1"]
[Date "2021.07.06"]
[WhiteClock "0:00:30"]
[BlackClock "0:00:34"]

1. b3 {[%clk 0:03:00]}  e5 {[%clk 0:02:56]} 2. Bb2 {[%clk 0:03:00]}  Nc6 {[%clk 0:02:56]} 3. e3 {[%clk 0:03:00]}  Nf6 {[%clk 0:02:54]} 4. Bb5 {[%clk 0:03:00]}  Bd6 {[%clk 0:02:54]} 5. Na3 {[%clk 0:03:00]}  a6 {[%clk 0:02:50]} 6. Be2 {[%clk 0:02:59]}  b5 {[%clk 0:02:36]} 7. c4 {[%clk 0:02:58]}  b4 {[%clk 0:02:35]} 8. Nc2 {[%clk 0:02:58]}  O-O {[%clk 0:02:35]} 9. Nf3 {[%clk 0:02:58]}  e4 {[%clk 0:02:34]} 10. Nfd4 {[%clk 0:02:57]}  Nxd4 {[%clk 0:02:30]} 11. Nxd4 {[%clk 0:02:57]}  c5 {[%clk 0:02:17]} 12. Nf5 {[%clk 0:02:55]}  Bc7 {[%clk 0:02:17]} 13. f4 {[%clk 0:02:43]}  d5 {[%clk 0:02:14]} 14. Ng3 {[%clk 0:02:40]}  d4 {[%clk 0:02:12]} 15. Qc1 {[%clk 0:02:13]}  Re8 {[%clk 0:02:05]} 16. O-O {[%clk 0:02:11]}  Ng4 {[%clk 0:01:52]} 17. Bxg4 {[%clk 0:01:54]}  Bxg4 {[%clk 0:01:51]} 18. Qe1 {[%clk 0:01:54]}  Bc8 {[%clk 0:01:34]} 19. Qf2 {[%clk 0:01:54]}  Bb6 {[%clk 0:01:30]} 20. a3 {[%clk 0:01:51]}  Bb7 {[%clk 0:01:23]} 21. axb4 {[%clk 0:01:43]}  dxe3 {[%clk 0:01:10]} 22. dxe3 {[%clk 0:01:34]}  f6 {[%clk 0:00:57]} 23. Rad1 {[%clk 0:01:28]}  Qc7 {[%clk 0:00:57]} 24. bxc5 {[%clk 0:01:25]}  Bxc5 {[%clk 0:00:57]} 25. Bd4 {[%clk 0:01:25]}  Rab8 {[%clk 0:00:56]} 26. Nf5 {[%clk 0:01:15]}  Bc8 {[%clk 0:00:53]} 27. Bxc5 {[%clk 0:01:06]}  Qxc5 {[%clk 0:00:53]} 28. Nd4 {[%clk 0:01:06]}  Bg4 {[%clk 0:00:50]} 29. Ra1 {[%clk 0:01:02]}  a5 {[%clk 0:00:48]} 30. Qd2 {[%clk 0:01:01]}  Rb4 {[%clk 0:00:45]} 31. h3 {[%clk 0:00:53]}  Bd7 {[%clk 0:00:44]} 32. Nc2 {[%clk 0:00:48]}  Rb7 {[%clk 0:00:43]} 33. Rxa5 {[%clk 0:00:45]}  Qc7 {[%clk 0:00:44]} 34. Nd4 {[%clk 0:00:44]}  Rd8 {[%clk 0:00:43]} 35. Rfa1 {[%clk 0:00:43]}  Bc8 {[%clk 0:00:42]} 36. Qa2 {[%clk 0:00:37]}  Qf7 {[%clk 0:00:38]} 37. Ra7 {[%clk 0:00:35]}  h5 {[%clk 0:00:37]} 38. Rxb7 {[%clk 0:00:32]}  Bxb7 {[%clk 0:00:37]} 39. Qa5 {[%clk 0:00:31]}  Qg6 {[%clk 0:00:34]} 40. Qxd8+ {[%clk 0:00:30]} 1-0


[Site "https://www.chess.com"]

[Event "Titled Tuesday Blitz July 6 2021"]
[White "Kamsky, Gata"]
[Black "Yang, Kaiqi"]
[WhiteFideId "2000024"]
[BlackFideId "8604398"]
[WhiteElo "2644"]
[BlackElo "2373"]
[Result "1-0"]
[Round "03"]
[TimeControl "180+1"]
[Date "2021.07.06"]
[WhiteClock "0:00:08"]
[BlackClock "0:00:01"]

1. e4 {[%clk 0:03:00]}  e6 {[%clk 0:02:51]} 2. Qe2 {[%clk 0:02:58]}  c5 {[%clk 0:02:50]} 3. Nf3 {[%clk 0:02:56]}  Nc6 {[%clk 0:02:50]} 4. g3 {[%clk 0:02:56]}  g6 {[%clk 0:02:51]} 5. Bg2 {[%clk 0:02:56]}  Bg7 {[%clk 0:02:51]} 6. O-O {[%clk 0:02:57]}  Nge7 {[%clk 0:02:51]} 7. c3 {[%clk 0:02:56]}  d6 {[%clk 0:02:43]} 8. Na3 {[%clk 0:02:35]}  O-O {[%clk 0:02:41]} 9. Rd1 {[%clk 0:02:33]}  e5 {[%clk 0:02:36]} 10. Nc4 {[%clk 0:02:33]}  h6 {[%clk 0:02:25]} 11. d3 {[%clk 0:02:26]}  f5 {[%clk 0:02:23]} 12. exf5 {[%clk 0:02:07]}  Bxf5 {[%clk 0:02:10]} 13. Nh4 {[%clk 0:01:54]}  Be6 {[%clk 0:02:02]} 14. f4 {[%clk 0:01:54]}  Qd7 {[%clk 0:01:30]} 15. fxe5 {[%clk 0:01:38]}  d5 {[%clk 0:01:16]} 16. Ne3 {[%clk 0:01:36]}  Nxe5 {[%clk 0:01:14]} 17. Nf3 {[%clk 0:01:14]}  Nxf3+ {[%clk 0:01:08]} 18. Bxf3 {[%clk 0:01:13]}  Rae8 {[%clk 0:01:08]} 19. Re1 {[%clk 0:00:49]}  d4 {[%clk 0:00:56]} 20. Ng4 {[%clk 0:00:20]}  Nf5 {[%clk 0:00:48]} 21. Bd2 {[%clk 0:00:17]}  Bf7 {[%clk 0:00:23]} 22. Qg2 {[%clk 0:00:15]}  dxc3 {[%clk 0:00:16]} 23. Bxc3 {[%clk 0:00:16]}  Bxc3 {[%clk 0:00:13]} 24. bxc3 {[%clk 0:00:15]}  Qxd3 {[%clk 0:00:13]} 25. Nf6+ {[%clk 0:00:12]}  Kg7 {[%clk 0:00:13]} 26. Nxe8+ {[%clk 0:00:13]}  Rxe8 {[%clk 0:00:12]} 27. Rxe8 {[%clk 0:00:12]}  Bxe8 {[%clk 0:00:13]} 28. Re1 {[%clk 0:00:12]}  Bf7 {[%clk 0:00:08]} 29. Bxb7 {[%clk 0:00:11]}  Qxc3 {[%clk 0:00:08]} 30. Qf2 {[%clk 0:00:11]}  Nd4 {[%clk 0:00:07]} 31. Bg2 {[%clk 0:00:10]}  a5 {[%clk 0:00:03]} 32. h4 {[%clk 0:00:11]}  h5 {[%clk 0:00:02]} 33. Re7 {[%clk 0:00:09]}  Nf5 {[%clk 0:00:02]} 34. Rc7 {[%clk 0:00:09]}  Nxg3 {[%clk 0:00:01]} 35. Qxf7+ {[%clk 0:00:08]}  Kh6 {[%clk 0:00:01]} 36. Qh7# {[%clk 0:00:08]} 1-0


[Site "https://www.chess.com"]

[Event "Titled Tuesday Blitz July 6 2021"]
[White "Koellner, Ruben Gideon"]
[Black "Wagner, Dennis"]
[WhiteFideId "12993093"]
[BlackFideId "24650684"]
[WhiteElo "2527"]
[BlackElo "2355"]
[Result "1-0"]
[Round "03"]
[TimeControl "180+1"]
[Date "2021.07.06"]
[WhiteClock "0:00:20"]
[BlackClock "0:00:12"]

1. d4 {[%clk 0:02:58]}  Nf6 {[%clk 0:02:59]} 2. Bg5 {[%clk 0:02:54]}  g6 {[%clk 0:02:56]} 3. Bxf6 {[%clk 0:02:53]}  exf6 {[%clk 0:02:57]} 4. g3 {[%clk 0:02:53]}  d5 {[%clk 0:02:54]} 5. Bg2 {[%clk 0:02:53]}  c6 {[%clk 0:02:54]} 6. e3 {[%clk 0:02:53]}  h5 {[%clk 0:02:54]} 7. h4 {[%clk 0:02:52]}  Bg4 {[%clk 0:02:50]} 8. Ne2 {[%clk 0:02:51]}  Bd6 {[%clk 0:02:44]} 9. b3 {[%clk 0:02:44]}  Nd7 {[%clk 0:02:40]} 10. Nd2 {[%clk 0:02:39]}  O-O {[%clk 0:01:58]} 11. O-O {[%clk 0:02:38]}  Re8 {[%clk 0:01:57]} 12. c4 {[%clk 0:02:35]}  dxc4 {[%clk 0:01:56]} 13. bxc4 {[%clk 0:02:28]}  Rb8 {[%clk 0:01:56]} 14. Rb1 {[%clk 0:02:26]}  Qa5 {[%clk 0:01:47]} 15. Qc2 {[%clk 0:01:52]}  Qc7 {[%clk 0:00:37]} 16. Rfe1 {[%clk 0:01:38]}  Bxe2 {[%clk 0:00:31]} 17. Rxe2 {[%clk 0:01:39]}  Bxg3 {[%clk 0:00:31]} 18. fxg3 {[%clk 0:01:31]}  Qxg3 {[%clk 0:00:32]} 19. Nf1 {[%clk 0:01:22]}  Qxh4 {[%clk 0:00:32]} 20. Qd2 {[%clk 0:01:22]}  f5 {[%clk 0:00:28]} 21. Qe1 {[%clk 0:01:21]}  Qf6 {[%clk 0:00:27]} 22. Qf2 {[%clk 0:01:12]}  Nb6 {[%clk 0:00:27]} 23. c5 {[%clk 0:01:05]}  Nd5 {[%clk 0:00:27]} 24. Bxd5 {[%clk 0:01:02]}  cxd5 {[%clk 0:00:28]} 25. Reb2 {[%clk 0:01:02]}  b6 {[%clk 0:00:23]} 26. Qh2 {[%clk 0:00:56]}  h4 {[%clk 0:00:19]} 27. Qd6 {[%clk 0:00:44]}  Qxd6 {[%clk 0:00:18]} 28. cxd6 {[%clk 0:00:45]}  Rbd8 {[%clk 0:00:19]} 29. Rh2 {[%clk 0:00:36]}  g5 {[%clk 0:00:18]} 30. Rf2 {[%clk 0:00:36]}  Rxd6 {[%clk 0:00:12]} 31. Rxf5 {[%clk 0:00:36]}  f6 {[%clk 0:00:13]} 32. Rc1 {[%clk 0:00:33]}  Re7 {[%clk 0:00:12]} 33. Rc8+ {[%clk 0:00:29]}  Kg7 {[%clk 0:00:13]} 34. Rf2 {[%clk 0:00:20]}  Kg6 {[%clk 0:00:12]} 35. Rfc2 {[%clk 0:00:20]}  f5 {[%clk 0:00:11]} 36. Rg8+ {[%clk 0:00:19]}  Kf6 {[%clk 0:00:11]} 37. Rcc8 {[%clk 0:00:18]}  Rde6 {[%clk 0:00:11]} 38. Rcf8+ {[%clk 0:00:18]}  Rf7 {[%clk 0:00:12]} 39. Rxf7+ {[%clk 0:00:18]}  Kxf7 {[%clk 0:00:12]} 40. Rxg5 {[%clk 0:00:19]}  Kf6 {[%clk 0:00:13]} 41. Rh5 {[%clk 0:00:19]}  Rc6 {[%clk 0:00:13]} 42. Rh6+ {[%clk 0:00:19]}  Kg5 {[%clk 0:00:12]} 43. Rxc6 {[%clk 0:00:20]} 1-0


[Site "https://www.chess.com"]